[Event "MČR 2022 blesk"]
[Site "Turnov, Czech Republic"]
[Date "2022.09.10"]
[Round "5.2"]
[White "Cerveny, Martin"]
[Black "Neuman, Petr"]
[Result "1/2-1/2"]
[TimeControl "2x 3 min + 2s/move"]
[WhiteElo "2288"]
[BlackElo "2352"]

1. d4 {[%clk 00:03:03]} d5 {[%clk 00:03:03]} {[%emt 00:00:05]} 2. c4 {[%clk
00:03:04]} c6 {[%clk 00:03:04]} 3. Nf3 {[%clk 00:03:05]} {[%emt 00:00:09]} Nf6
{[%clk 00:03:05]} 4. Nc3 {[%clk 00:03:06]} a6 {[%clk 00:03:06]} 5. e3 {[%clk
00:03:06]} Bf5 {[%clk 00:03:07]} {[%emt 00:00:05]} 6. Bd3 {[%clk 00:03:03]}
Bxd3 {[%clk 00:02:59]} {[%emt 00:00:07]} 7. Qxd3 {[%clk 00:03:04]} e6 {[%clk
00:03:00]} {[%emt 00:00:07]} 8. O-O {[%clk 00:02:58]} {[%emt 00:00:04]} Bb4
{[%clk 00:02:51]} {[%emt 00:00:10]} 9. Bd2 {[%clk 00:02:57]} {[%emt 00:00:07]}
a5 {[%clk 00:02:48]} {[%emt 00:00:12]} 10. a4 {[%clk 00:02:53]} O-O {[%clk
00:02:45]} 11. Rac1 {[%clk 00:02:44]} {[%emt 00:00:11]} Nbd7 {[%clk 00:02:45]}
{[%emt 00:00:05]} 12. Rfd1 {[%clk 00:02:40]} {[%emt 00:00:06]} Qe7 {[%clk
00:02:25]} {[%emt 00:00:25]} 13. h3 {[%clk 00:02:20]} {[%emt 00:00:20]} Rfd8
{[%clk 00:02:19]} {[%emt 00:00:06]} 14. b3 {[%clk 00:01:48]} {[%emt 00:00:35]}
Rac8 {[%clk 00:02:14]} {[%emt 00:00:06]} 15. Re1 {[%clk 00:01:40]} {[%emt
00:00:13]} Ra8 {[%clk 00:02:08]} {[%emt 00:00:07]} 16. Nb1 {[%clk 00:01:22]}
{[%emt 00:00:16]} Ne4 {[%clk 00:02:04]} {[%emt 00:00:10]} 17. Bxb4 {[%clk
00:01:20]} {[%emt 00:00:09]} Qxb4 {[%clk 00:02:04]} 18. Nfd2 {[%clk 00:01:13]}
{[%emt 00:00:05]} Ndf6 {[%clk 00:01:58]} {[%emt 00:00:11]} 19. f3 {[%clk
00:01:04]} {[%emt 00:00:05]} Nxd2 {[%clk 00:01:56]} {[%emt 00:00:07]} 20. Nxd2
{[%clk 00:01:05]} {[%emt 00:00:09]} c5 {[%clk 00:01:49]} 21. cxd5 {[%clk
00:01:00]} {[%emt 00:00:08]} Rxd5 {[%clk 00:01:35]} {[%emt 00:00:14]} 22. Rc4
{[%clk 00:00:48]} {[%emt 00:00:14]} Qb6 {[%clk 00:01:31]} {[%emt 00:00:31]} 23.
Ne4 {[%clk 00:00:36]} 1/2-1/2

[Event "MČR 2022 blesk"]
[Site "Turnov, Czech Republic"]
[Date "2022.09.10"]
[Round "5.3"]
[White "Petr, Martin"]
[Black "Balacek, Tadeas"]
[Result "0-1"]
[TimeControl "2x 3 min + 2s/move"]
[WhiteElo "2446"]
[BlackElo "2257"]

1. e4 {[%clk 00:01:02]} {[%emt 00:01:59]} e6 {[%clk 00:02:01]} {[%emt
00:01:15]} 2. Qe2 {[%clk 00:01:02]} c5 {[%clk 00:01:58]} 3. g3 {[%clk
00:01:03]} Nc6 {[%clk 00:01:59]} {[%emt 00:00:05]} 4. Nf3 {[%clk 00:01:04]} g6
{[%clk 00:01:58]} {[%emt 00:00:04]} 5. Bg2 {[%clk 00:01:05]} {[%emt 00:00:05]}
Bg7 {[%clk 00:01:59]} 6. O-O {[%clk 00:01:05]} Nge7 {[%clk 00:02:00]} 7. c3
{[%clk 00:01:06]} {[%emt 00:00:39]} d5 {[%clk 00:01:57]} 8. e5 {[%clk
00:00:53]} b6 {[%clk 00:01:40]} 9. d3 {[%clk 00:00:51]} Qc7 {[%clk 00:01:31]}
{[%emt 00:00:08]} 10. Bf4 {[%clk 00:00:50]} {[%emt 00:00:15]} a5 {[%clk
00:01:31]} 11. a4 {[%clk 00:00:51]} Ba6 {[%clk 00:01:32]} 12. Na3 {[%clk
00:00:52]} {[%emt 00:00:22]} h6 {[%clk 00:01:28]} 13. Nb5 {[%clk 00:00:50]}
Bxb5 {[%clk 00:01:26]} 14. axb5 {[%clk 00:00:51]} Na7 {[%clk 00:01:25]} 15. h4
{[%clk 00:00:45]} Nxb5 {[%clk 00:01:19]} {[%emt 00:00:05]} 16. c4 {[%clk
00:00:45]} {[%emt 00:00:05]} Na7 {[%clk 00:01:17]} {[%emt 00:00:04]} 17. d4
{[%clk 00:00:41]} {[%emt 00:00:07]} Nac6 {[%clk 00:01:08]} {[%emt 00:00:08]} 18.
Rfd1 {[%clk 00:00:30]} {[%emt 00:00:12]} O-O {[%clk 00:01:04]} {[%emt
00:00:06]} 19. dxc5 {[%clk 00:00:13]} {[%emt 00:00:28]} bxc5 {[%clk 00:01:04]}
20. Qe3 {[%clk 00:00:11]} d4 {[%clk 00:00:56]} {[%emt 00:00:10]} 21. Qe4 {[%clk
00:00:11]} Rab8 {[%clk 00:00:54]} {[%emt 00:00:06]} 22. Rd2 {[%clk 00:00:11]}
{[%emt 00:00:05]} Rb3 {[%clk 00:00:47]} {[%emt 00:00:10]} 23. h5 {[%clk
00:00:10]} Rxf3 {[%clk 00:00:12]} {[%emt 00:01:08]} 24. Bxf3 {[%clk 00:00:10]}
{[%emt 00:00:04]} g5 {[%clk 00:00:14]} 25. Kh2 {[%clk 00:00:07]} gxf4 {[%clk
00:00:14]} 26. gxf4 {[%clk 00:00:08]} Nf5 {[%clk 00:00:15]} {[%emt 00:00:09]}
27. Rg1 {[%clk 00:00:08]} Nce7 {[%clk 00:00:16]} 28. Bg4 {[%clk 00:00:05]} Kh8
{[%clk 00:00:16]} 29. f3 {[%clk 00:00:05]} Rg8 {[%clk 00:00:16]} {[%emt
00:00:04]} 30. Rdg2 {[%clk 00:00:06]} Qd8 {[%clk 00:00:16]} 31. Bxf5 {[%clk
00:00:03]} Nxf5 32. Rg4 Ne3 {[%clk 00:00:17]} {[%emt 00:00:04]} 33. R4g3 {[%clk
00:00:04]} Qh4+ {[%clk 00:00:17]} 34. Rh3 {[%clk 00:00:06]} Qf2+ {[%clk
00:00:19]} 35. Kh1 {[%clk 00:00:07]} Bf8 {[%clk 00:00:16]} 36. Rxg8+ {[%clk
00:00:05]} {[%emt 00:00:04]} Kxg8 {[%clk 00:00:18]} 37. Qb1 {[%clk 00:00:06]}
Qg2# {[%emt 00:00:19]} 38. Qd1 0-1

[Event "MČR 2022 blesk"]
[Site "Turnov, Czech Republic"]
[Date "2022.09.10"]
[Round "5.5"]
[White "Cech, Pavel"]
[Black "Polak, Tomas"]
[Result "1-0"]
[TimeControl "2x 3 min + 2s/move"]
[WhiteElo "2369"]
[BlackElo "2475"]

1. d4 {[%clk 00:02:55]} {[%emt 00:00:06]} Nf6 {[%clk 00:03:03]} 2. Bg5 {[%clk
00:02:56]} {[%emt 00:00:10]} e6 {[%clk 00:03:01]} 3. e4 {[%clk 00:02:57]} d6
{[%clk 00:02:58]} {[%emt 00:00:08]} 4. Nc3 {[%clk 00:02:55]} Be7 {[%clk
00:02:52]} {[%emt 00:00:05]} 5. Qd2 {[%clk 00:02:49]} {[%emt 00:00:08]} h6
{[%clk 00:02:50]} {[%emt 00:00:05]} 6. Be3 {[%clk 00:02:47]} {[%emt 00:00:05]}
Ng4 {[%clk 00:02:28]} {[%emt 00:00:27]} 7. Bf4 {[%clk 00:02:47]} e5 {[%clk
00:02:29]} 8. dxe5 {[%clk 00:02:47]} {[%emt 00:00:04]} dxe5 {[%clk 00:02:29]} 9.
Qxd8+ {[%clk 00:02:48]} {[%emt 00:00:09]} Bxd8 {[%clk 00:02:30]} 10. Bg3 {[%clk
00:02:47]} Nd7 {[%clk 00:02:27]} 11. Be2 {[%clk 00:02:37]} {[%emt 00:00:12]} h5
{[%clk 00:02:19]} {[%emt 00:00:15]} 12. h3 {[%clk 00:02:11]} {[%emt 00:00:30]}
Ngf6 {[%clk 00:02:08]} {[%emt 00:00:18]} 13. Nf3 {[%clk 00:02:10]} Nc5 {[%clk
00:02:07]} 14. Bd3 {[%clk 00:02:01]} {[%emt 00:00:13]} O-O {[%clk 00:02:02]} 15.
Bxe5 {[%clk 00:01:52]} {[%emt 00:00:21]} Re8 {[%clk 00:01:59]} 16. O-O {[%clk
00:01:49]} c6 {[%clk 00:01:59]} {[%emt 00:00:05]} 17. Rfe1 {[%clk 00:01:45]}
{[%emt 00:00:04]} Be6 {[%clk 00:01:55]} {[%emt 00:00:06]} 18. Bd4 {[%clk
00:01:40]} {[%emt 00:00:07]} Nxd3 19. cxd3 {[%clk 00:01:40]} Be7 {[%clk
00:01:42]} {[%emt 00:00:12]} 20. Rad1 {[%clk 00:01:38]} c5 {[%clk 00:01:40]}
{[%emt 00:00:13]} 21. Be3 {[%clk 00:01:36]} Red8 {[%clk 00:01:36]} 22. d4
{[%clk 00:01:36]} {[%emt 00:00:05]} cxd4 {[%clk 00:01:35]} {[%emt 00:00:04]} 23.
Nxd4 {[%clk 00:01:37]} Bd7 {[%clk 00:01:34]} 24. e5 {[%clk 00:01:32]} {[%emt
00:00:05]} Nh7 {[%clk 00:01:33]} {[%emt 00:00:07]} 25. Nd5 {[%clk 00:01:32]}
{[%emt 00:00:04]} Bf8 {[%clk 00:01:32]} 26. Nf4 {[%clk 00:01:32]} {[%emt
00:00:10]} h4 {[%clk 00:01:31]} 27. e6 {[%clk 00:01:32]} fxe6 {[%clk 00:01:28]}
28. Ndxe6 {[%clk 00:01:31]} {[%emt 00:00:09]} Bxe6 {[%clk 00:01:28]} 29. Nxe6
{[%clk 00:01:30]} Rxd1 {[%clk 00:01:23]} {[%emt 00:00:15]} 30. Rxd1 {[%clk
00:01:31]} a6 {[%clk 00:01:18]} {[%emt 00:00:05]} 31. Rd7 {[%clk 00:01:28]}
{[%emt 00:00:04]} b5 {[%clk 00:01:15]} {[%emt 00:00:08]} 32. Bd4 {[%clk
00:01:27]} Rc8 {[%clk 00:01:08]} {[%emt 00:00:20]} 33. Nxf8 {[%clk 00:01:24]}
Kxf8 {[%clk 00:01:08]} 34. Rxg7 {[%clk 00:01:25]} Rc1+ {[%clk 00:01:04]} 35.
Kh2 {[%clk 00:01:26]} Rc4 {[%clk 00:01:05]} {[%emt 00:00:09]} 36. Be5 {[%clk
00:01:15]} {[%emt 00:00:10]} Re4 {[%clk 00:01:03]} 37. Rxh7 {[%clk 00:01:15]}
{[%emt 00:00:05]} Rxe5 {[%clk 00:01:04]} 38. Rxh4 {[%clk 00:01:16]} Re2 {[%clk
00:01:05]} 39. Rb4 {[%clk 00:01:16]} {[%emt 00:00:13]} Rxf2 {[%clk 00:01:05]}
40. a4 {[%clk 00:01:16]} bxa4 {[%clk 00:01:05]} {[%emt 00:00:04]} 41. Rxa4
{[%clk 00:01:17]} Rf6 {[%clk 00:01:02]} 42. b4 {[%clk 00:01:14]} {[%emt
00:00:04]} Kg7 {[%clk 00:00:59]} {[%emt 00:00:04]} 43. Ra5 {[%clk 00:01:15]}
Rb6 {[%clk 00:01:00]} {[%emt 00:00:05]} 44. g4 {[%clk 00:01:13]} Kf7 {[%clk
00:01:00]} 45. Kg3 {[%emt 00:00:15]} Kg7 46. h4 {[%clk 00:01:14]} Kf7 {[%clk
00:01:02]} 47. h5 {[%clk 00:01:16]} Kg7 {[%clk 00:01:03]} 48. Kh4 {[%clk
00:01:16]} {[%emt 00:00:04]} Kh7 {[%clk 00:01:03]} 49. Ra2 {[%clk 00:01:11]}
Kg7 {[%clk 00:01:04]} {[%emt 00:00:05]} 50. Ra4 {[%clk 00:01:09]} Kh7 {[%clk
00:01:05]} 51. Kg5 {[%clk 00:01:04]} {[%emt 00:00:10]} Kg7 {[%clk 00:01:05]} 52.
Kf5 {[%clk 00:01:04]} {[%emt 00:00:08]} Kf7 {[%clk 00:01:01]} 53. g5 {[%clk
00:01:03]} {[%emt 00:00:04]} Kg7 {[%clk 00:01:01]} {[%emt 00:00:04]} 54. Ra5
{[%clk 00:00:59]} {[%emt 00:00:05]} Kf7 {[%clk 00:00:59]} {[%emt 00:00:04]} 55.
h6 {[%clk 00:00:55]} {[%emt 00:00:12]} Rd6 {[%clk 00:00:58]} 56. Rc5 {[%clk
00:00:54]} {[%emt 00:00:20]} Rb6 {[%clk 00:01:00]} 57. Rc7+ {[%clk 00:00:54]}
Kg8 {[%clk 00:01:01]} 58. g6 {[%clk 00:00:55]} Rb5+ {[%clk 00:01:02]} 59. Kf6
{[%clk 00:00:54]} Rb6+ {[%clk 00:01:03]} 60. Kf5 {[%clk 00:00:55]} Rb5+ {[%clk
00:01:04]} 61. Rc5 {[%clk 00:00:47]} {[%emt 00:00:12]} Rb8 {[%clk 00:01:05]} 62.
Ra5 {[%clk 00:00:37]} Rb6 {[%clk 00:01:05]} {[%emt 00:00:05]} 63. b5 {[%clk
00:00:34]} {[%emt 00:00:04]} 1-0

[Event "MČR 2022 blesk"]
[Site "Turnov, Czech Republic"]
[Date "2022.09.10"]
[Round "5.6"]
[White "Roubalik, Jakub"]
[Black "Sodoma, Jan"]
[Result "0-1"]
[TimeControl "2x 3 min + 2s/move"]
[WhiteElo "2276"]
[BlackElo "2220"]

1. d4 {[%clk 00:03:03]} {[%emt 00:00:05]} Nf6 {[%clk 00:03:03]} 2. c4 {[%clk
00:03:03]} {[%emt 00:00:11]} e6 {[%clk 00:03:04]} 3. Nf3 {[%clk 00:03:04]} b6
{[%clk 00:03:04]} 4. a3 {[%clk 00:03:05]} Ba6 {[%clk 00:02:55]} {[%emt
00:00:14]} 5. Qc2 {[%clk 00:03:05]} c5 {[%clk 00:02:54]} 6. d5 {[%clk
00:02:58]} {[%emt 00:00:06]} exd5 {[%clk 00:02:48]} {[%emt 00:00:07]} 7. cxd5
{[%clk 00:02:57]} {[%emt 00:00:05]} Be7 {[%clk 00:02:36]} {[%emt 00:00:33]} 8.
Nc3 {[%clk 00:02:56]} O-O {[%clk 00:02:34]} 9. e4 {[%clk 00:02:52]} Bxf1 {[%clk
00:02:34]} {[%emt 00:00:05]} 10. Kxf1 {[%clk 00:02:53]} d6 {[%clk 00:02:35]} 11.
g3 {[%clk 00:02:52]} Nbd7 {[%clk 00:02:34]} 12. Kg2 {[%clk 00:02:52]} {[%emt
00:00:38]} a6 {[%clk 00:02:21]} 13. a4 {[%clk 00:02:53]} c4 {[%clk 00:02:14]}
14. Nd4 {[%clk 00:02:48]} Ne5 {[%clk 00:02:11]} 15. h3 {[%clk 00:02:25]} {[%emt
00:00:23]} Rc8 {[%clk 00:02:00]} {[%emt 00:00:13]} 16. Be3 {[%clk 00:02:15]}
{[%emt 00:00:11]} Qc7 {[%clk 00:01:41]} {[%emt 00:00:22]} 17. g4 {[%clk
00:01:45]} {[%emt 00:00:37]} Qb7 {[%clk 00:01:33]} {[%emt 00:00:05]} 18. f3
{[%clk 00:01:40]} {[%emt 00:00:06]} Nfd7 {[%clk 00:01:31]} {[%emt 00:00:07]} 19.
Nf5 {[%clk 00:01:31]} {[%emt 00:00:09]} Rfe8 {[%clk 00:01:32]} 20. h4 {[%clk
00:01:13]} {[%emt 00:00:21]} Bf8 {[%clk 00:01:30]} {[%emt 00:00:05]} 21. h5
{[%clk 00:01:12]} {[%emt 00:00:04]} Nc5 {[%clk 00:01:28]} {[%emt 00:00:08]} 22.
g5 {[%clk 00:00:51]} {[%emt 00:00:16]} Ned3 {[%clk 00:01:23]} {[%emt 00:00:07]}
23. Rag1 {[%clk 00:00:44]} {[%emt 00:00:11]} b5 {[%clk 00:01:21]} {[%emt
00:00:09]} 24. axb5 {[%clk 00:00:44]} axb5 {[%clk 00:01:22]} 25. Kf1 {[%clk
00:00:41]} {[%emt 00:00:04]} b4 {[%clk 00:01:22]} {[%emt 00:00:04]} 26. g6
{[%clk 00:00:37]} {[%emt 00:00:06]} bxc3 {[%clk 00:01:13]} {[%emt 00:00:07]} 27.
h6 {[%clk 00:00:30]} {[%emt 00:01:12]} fxg6 {[%clk 00:01:01]} {[%emt 00:04:32]}
28. hxg7 {[%clk 00:00:31]} Bxg7 {[%clk 00:00:56]} 29. Qh2 {[%clk 00:00:27]}
cxb2 {[%clk 00:00:31]} 30. Qxh7+ {[%clk 00:00:28]} Kf8 {[%clk 00:00:32]} {[%emt
00:00:04]} 31. Ke2 {[%clk 00:00:17]} gxf5 {[%clk 00:00:31]} 32. Bd4 {[%clk
00:00:14]} Ne5 {[%clk 00:00:22]} 33. Qxf5+ {[%clk 00:00:13]} Qf7 {[%clk
00:00:22]} {[%emt 00:00:05]} 34. Qh7 {[%clk 00:00:07]} Qxf3+ {[%clk 00:00:22]}
35. Kd2 {[%clk 00:00:07]} Qd3+ {[%clk 00:00:21]} 0-1

[Event "MČR 2022 blesk"]
[Site "Turnov, Czech Republic"]
[Date "2022.09.10"]
[Round "5.7"]
[White "Sykora, Marek"]
[Black "Nemec, Jachym"]
[Result "0-1"]
[TimeControl "2x 3 min + 2s/move"]
[WhiteElo "2084"]
[BlackElo "2130"]

1. e4 {[%clk 00:03:02]} {[%emt 00:00:07]} c5 {[%clk 00:03:03]} 2. Nc3 {[%clk
00:03:02]} {[%emt 00:00:05]} Nc6 {[%clk 00:03:04]} 3. g3 {[%clk 00:03:04]} g6
{[%clk 00:03:04]} 4. Bg2 {[%clk 00:03:05]} Bg7 {[%clk 00:03:05]} 5. d3 {[%clk
00:03:06]} {[%emt 00:00:13]} d6 {[%clk 00:03:06]} 6. f4 {[%clk 00:03:07]} e6
{[%clk 00:03:01]} 7. Nf3 {[%clk 00:03:07]} Nge7 {[%clk 00:03:02]} {[%emt
00:00:09]} 8. O-O {[%clk 00:03:07]} O-O {[%clk 00:03:02]} 9. Be3 {[%clk
00:03:07]} Rb8 {[%clk 00:03:02]} {[%emt 00:00:10]} 10. Qd2 {[%clk 00:03:07]} b5
{[%clk 00:03:01]} 11. g4 {[%clk 00:02:58]} {[%emt 00:00:06]} b4 {[%clk
00:03:01]} 12. Nd1 {[%clk 00:02:59]} {[%emt 00:00:05]} f5 {[%clk 00:03:02]} 13.
h3 {[%clk 00:03:00]} a5 {[%clk 00:02:59]} {[%emt 00:00:05]} 14. gxf5 {[%clk
00:02:34]} {[%emt 00:00:27]} gxf5 {[%clk 00:02:55]} {[%emt 00:00:05]} 15. e5
{[%clk 00:02:21]} {[%emt 00:00:14]} Nd5 {[%clk 00:02:48]} {[%emt 00:00:15]} 16.
exd6 {[%clk 00:01:52]} {[%emt 00:00:31]} Qxd6 {[%clk 00:02:46]} {[%emt
00:00:05]} 17. c3 {[%clk 00:01:44]} {[%emt 00:00:05]} Ba6 {[%clk 00:02:43]}
{[%emt 00:00:04]} 18. c4 {[%clk 00:01:22]} {[%emt 00:00:26]} Nxe3 {[%clk
00:02:43]} 19. Qxe3 {[%clk 00:01:18]} {[%emt 00:00:10]} Nd4 {[%clk 00:02:41]}
{[%emt 00:00:05]} 20. Rf2 {[%clk 00:01:12]} {[%emt 00:00:10]} Nxf3+ {[%clk
00:02:15]} {[%emt 00:00:27]} 21. Qxf3 {[%clk 00:01:13]} Bd4 {[%clk 00:02:14]}
22. Ne3 {[%clk 00:01:13]} Kh8 {[%clk 00:02:16]} {[%emt 00:00:07]} 23. Re2
{[%clk 00:01:09]} {[%emt 00:00:05]} Rg8 {[%clk 00:02:16]} 24. Kh1 {[%clk
00:00:42]} {[%emt 00:00:26]} Bb7 {[%clk 00:02:16]} {[%emt 00:00:09]} 25. Qxb7
{[%clk 00:00:38]} Rxb7 {[%clk 00:02:17]} 26. Bxb7 {[%clk 00:00:39]} {[%emt
00:00:04]} Qxf4 {[%clk 00:02:15]} {[%emt 00:00:04]} 27. Ng2 {[%clk 00:00:36]}
{[%emt 00:00:06]} Qg3 {[%clk 00:02:13]} {[%emt 00:00:04]} 0-1

[Event "MČR 2022 blesk"]
[Site "Turnov, Czech Republic"]
[Date "2022.09.10"]
[Round "5.8"]
[White "Pisk, Petr"]
[Black "Marsalek, Zdenek"]
[Result "0-1"]
[TimeControl "2x 3 min + 2s/move"]
[WhiteElo "2312"]
[BlackElo "2203"]

1. d4 {[%clk 00:03:02]} d5 {[%clk 00:03:03]} 2. Nf3 {[%clk 00:03:02]} {[%emt
00:00:04]} Nf6 {[%clk 00:03:05]} 3. Bg5 {[%clk 00:03:03]} {[%emt 00:00:07]} Ne4
{[%clk 00:03:05]} 4. Bf4 {[%clk 00:03:04]} c5 {[%clk 00:03:06]} 5. e3 {[%clk
00:03:03]} Qb6 {[%clk 00:03:04]} {[%emt 00:00:06]} 6. Qc1 {[%clk 00:03:01]}
{[%emt 00:00:10]} Nc6 {[%clk 00:02:55]} {[%emt 00:00:08]} 7. c3 {[%clk
00:03:02]} e6 {[%clk 00:02:53]} 8. Nbd2 {[%clk 00:02:49]} {[%emt 00:00:13]}
Nxd2 {[%clk 00:02:51]} {[%emt 00:00:07]} 9. Qxd2 {[%clk 00:02:45]} {[%emt
00:00:10]} Be7 {[%clk 00:02:51]} 10. Bd3 {[%clk 00:02:39]} {[%emt 00:00:09]}
O-O {[%clk 00:02:43]} {[%emt 00:00:05]} 11. O-O {[%clk 00:02:38]} {[%emt
00:00:09]} Bd7 {[%clk 00:02:41]} 12. Qc2 {[%clk 00:02:29]} {[%emt 00:00:09]} f5
{[%clk 00:02:38]} {[%emt 00:00:06]} 13. Ne5 {[%clk 00:02:10]} {[%emt 00:00:19]}
Nxe5 {[%clk 00:02:37]} {[%emt 00:00:06]} 14. Bxe5 {[%clk 00:02:11]} Rac8 {[%clk
00:02:32]} {[%emt 00:00:09]} 15. Qe2 {[%clk 00:01:56]} {[%emt 00:00:14]} Bd6
{[%clk 00:02:31]} {[%emt 00:00:06]} 16. Bxd6 {[%clk 00:01:44]} {[%emt
00:00:17]} Qxd6 {[%clk 00:02:31]} 17. f4 {[%clk 00:01:45]} a6 {[%clk 00:02:27]}
{[%emt 00:00:06]} 18. Rad1 {[%clk 00:01:29]} {[%emt 00:00:15]} Qb6 {[%clk
00:02:27]} 19. Rf2 {[%clk 00:00:51]} {[%emt 00:00:51]} Bb5 {[%clk 00:02:27]} 20.
Bxb5 {[%clk 00:00:52]} axb5 {[%clk 00:02:28]} 21. dxc5 {[%clk 00:00:50]} {[%emt
00:00:04]} Rxc5 {[%clk 00:02:28]} 22. Rd4 {[%clk 00:00:51]} Rc4 {[%clk
00:02:29]} {[%emt 00:00:04]} 23. Qd3 {[%clk 00:00:46]} {[%emt 00:00:05]} Rfc8
{[%clk 00:02:29]} {[%emt 00:00:13]} 24. Rd2 {[%clk 00:00:29]} {[%emt 00:00:05]}
b4 {[%clk 00:02:27]} {[%emt 00:00:11]} 25. cxb4 {[%clk 00:00:12]} {[%emt
00:00:12]} Qxb4 {[%clk 00:02:27]} {[%emt 00:00:05]} 26. b3 {[%clk 00:00:03]}
{[%emt 00:00:08]} Rc1+ {[%clk 00:02:23]} {[%emt 00:00:13]} 27. Kf2 {[%clk
00:00:05]} Qc5 {[%emt 00:00:12]} 28. Re2 b5 {[%clk 00:02:16]} 29. Qd2 {[%clk
00:00:08]} b4 {[%clk 00:02:14]} 30. Qxb4 {[%clk 00:00:10]} Qa7 {[%clk
00:02:12]} {[%emt 00:00:05]} 31. Qd6 {[%clk 00:00:10]} R1c6 {[%clk 00:02:11]}
{[%emt 00:00:04]} 32. Qe5 {[%clk 00:00:12]} h6 {[%clk 00:02:10]} {[%emt
00:00:05]} 33. h4 {[%clk 00:00:13]} Qa3 {[%clk 00:02:06]} {[%emt 00:00:10]} 34.
Red2 {[%clk 00:00:14]} Qc1 {[%clk 00:02:06]} 35. Kg3 {[%clk 00:00:14]} Qe1+
{[%clk 00:02:03]} {[%emt 00:00:05]} 36. Kh3 {[%clk 00:00:15]} Ra8 {[%clk
00:02:00]} {[%emt 00:00:15]} 37. R4d3 {[%clk 00:00:13]} Qf1 {[%clk 00:01:51]}
{[%emt 00:00:09]} 38. Kh2 {[%clk 00:00:13]} Raa6 {[%clk 00:01:42]} {[%emt
00:00:12]} 39. Rc3 {[%clk 00:00:13]} Qe1 {[%clk 00:01:38]} {[%emt 00:00:05]} 40.
Rxc6 {[%clk 00:00:13]} {[%emt 00:00:06]} Qxh4+ {[%clk 00:01:38]} 41. Kg1 {[%clk
00:00:15]} Rxc6 {[%clk 00:01:35]} {[%emt 00:00:04]} 42. Qb2 {[%clk 00:00:14]}
Qe1+ {[%emt 00:00:13]} 43. Kh2 Rc1 {[%clk 00:01:34]} 44. Re2 {[%clk 00:00:16]}
Qh4# {[%clk 00:01:34]} 0-1

[Event "MČR 2022 blesk"]
[Site "Turnov, Czech Republic"]
[Date "2022.09.10"]
[Round "6.2"]
[White "Sodoma, Jan"]
[Black "Cerveny, Martin"]
[Result "0-1"]
[TimeControl "2x 3 min + 2s/move"]
[WhiteElo "2220"]
[BlackElo "2288"]

1. Nf3 {[%clk 00:03:02]} {[%emt 00:00:06]} d5 {[%clk 00:03:04]} 2. d4 {[%clk
00:03:03]} Nf6 {[%clk 00:03:05]} {[%emt 00:00:04]} 3. c4 {[%clk 00:03:04]} c6
{[%clk 00:03:06]} 4. e3 {[%clk 00:03:04]} {[%emt 00:00:09]} Bg4 {[%clk
00:03:05]} 5. h3 {[%clk 00:02:57]} {[%emt 00:00:23]} Bh5 {[%clk 00:03:03]} 6.
Nc3 {[%clk 00:02:57]} e6 {[%clk 00:03:03]} 7. g4 {[%clk 00:02:58]} Bg6 {[%clk
00:03:04]} 8. Ne5 {[%clk 00:02:59]} Nfd7 {[%clk 00:02:51]} {[%emt 00:00:05]} 9.
Nxg6 {[%clk 00:02:59]} {[%emt 00:00:06]} hxg6 {[%clk 00:02:52]} 10. Bd2 {[%clk
00:02:57]} {[%emt 00:00:04]} a6 {[%clk 00:02:44]} {[%emt 00:00:07]} 11. b3
{[%clk 00:02:52]} {[%emt 00:00:16]} Nf6 {[%clk 00:02:40]} 12. Bg2 {[%clk
00:02:50]} {[%emt 00:00:07]} Nbd7 {[%clk 00:02:39]} 13. Qe2 {[%clk 00:02:46]}
{[%emt 00:00:10]} b5 {[%clk 00:02:36]} 14. g5 {[%clk 00:02:35]} {[%emt
00:00:16]} Nh5 {[%clk 00:02:16]} {[%emt 00:00:18]} 15. h4 {[%clk 00:02:35]} Rb8
{[%clk 00:02:10]} {[%emt 00:00:13]} 16. e4 {[%clk 00:02:11]} {[%emt 00:00:22]}
Bb4 {[%clk 00:01:37]} {[%emt 00:00:39]} 17. exd5 {[%clk 00:01:38]} {[%emt
00:00:35]} Bxc3 {[%clk 00:01:38]} 18. Bxc3 {[%clk 00:01:38]} cxd5 {[%clk
00:01:37]} {[%emt 00:00:04]} 19. Bxd5 {[%clk 00:01:08]} {[%emt 00:00:33]} Nf4
{[%clk 00:01:30]} {[%emt 00:00:16]} 20. Qe3 {[%clk 00:00:56]} {[%emt 00:00:07]}
Qc7 {[%clk 00:01:17]} {[%emt 00:00:13]} 21. Rc1 {[%clk 00:00:29]} {[%emt
00:00:29]} bxc4 {[%clk 00:00:59]} {[%emt 00:00:20]} 22. bxc4 {[%clk 00:00:28]}
{[%emt 00:00:05]} O-O {[%clk 00:00:46]} {[%emt 00:00:16]} 23. Bf3 {[%clk
00:00:29]} Rfe8 {[%clk 00:00:40]} {[%emt 00:00:10]} 24. O-O {[%clk 00:00:26]}
Nh3+ {[%clk 00:00:26]} {[%emt 00:00:17]} 25. Kh1 {[%clk 00:00:23]} {[%emt
00:00:05]} Nf4 {[%clk 00:00:26]} 26. c5 {[%clk 00:00:23]} {[%emt 00:00:05]} Nd5
{[%clk 00:00:26]} {[%emt 00:00:04]} 27. Qd2 {[%clk 00:00:19]} {[%emt 00:00:05]}
Rb5 {[%clk 00:00:18]} {[%emt 00:00:07]} 28. a4 {[%clk 00:00:19]} {[%emt
00:00:06]} Rb3 {[%clk 00:00:19]} 29. Ba5 {[%clk 00:00:19]} {[%emt 00:00:04]}
Qc6 {[%clk 00:00:20]} 30. Bg2 {[%clk 00:00:19]} {[%emt 00:00:04]} Reb8 {[%clk
00:00:21]} 31. Rfe1 {[%clk 00:00:14]} {[%emt 00:00:05]} Qxa4 {[%clk 00:00:21]}
32. Ra1 {[%clk 00:00:14]} {[%emt 00:00:04]} Qc6 {[%clk 00:00:22]} 33. Ra2
{[%clk 00:00:13]} {[%emt 00:00:04]} Qb5 {[%clk 00:00:19]} {[%emt 00:00:08]} 34.
Rea1 {[%clk 00:00:13]} {[%emt 00:00:04]} Rb1+ {[%clk 00:00:20]} 35. Kh2 {[%clk
00:00:14]} Rxa1 {[%clk 00:00:21]} 36. Rxa1 {[%clk 00:00:16]} Qc4 {[%clk
00:00:22]} 37. Ra2 {[%clk 00:00:06]} {[%emt 00:00:09]} Rb3 {[%clk 00:00:22]} 38.
Rc2 {[%clk 00:00:07]} {[%emt 00:00:05]} Qb5 {[%clk 00:00:23]} 39. c6 {[%clk
00:00:06]} {[%emt 00:00:08]} N7b6 {[%clk 00:00:18]} {[%emt 00:00:04]} 40. Bxb6
{[%clk 00:00:07]} {[%emt 00:00:04]} Qxb6 {[%clk 00:00:18]} 41. Rc5 {[%clk
00:00:07]} Nc7 {[%clk 00:00:19]} 42. Qc2 {[%clk 00:00:08]} Rb2 {[%clk
00:00:20]} 43. Qc3 {[%clk 00:00:08]} {[%emt 00:00:08]} Rxf2 {[%clk 00:00:20]}
44. d5 {[%clk 00:00:09]} exd5 {[%clk 00:00:16]} {[%emt 00:00:05]} 45. Qe3
{[%clk 00:00:09]} {[%emt 00:00:05]} Rc2 {[%clk 00:00:13]} 46. Rc3 {[%clk
00:00:05]} {[%emt 00:00:05]} Qxe3 {[%clk 00:00:14]} {[%emt 00:00:06]} 47. Rxe3
{[%clk 00:00:07]} Rxc6 {[%clk 00:00:14]} 48. Re7 {[%clk 00:00:07]} {[%emt
00:00:27]} Kf8 {[%clk 00:00:15]} 49. Rd7 {[%clk 00:00:09]} Ke8 {[%clk
00:00:16]} 0-1